[Event "Schack-SM 2024: Sverigemastarklassen"]
[Site "Fortnox Arena, Hejaregatan 5, Vaxjo, Sweden"]
[Date "2024.07.02"]
[Round "4.5"]
[White "Hector, Jonny"]
[Black "Pantzar, Milton"]
[Result "1-0"]
[TimeControl "90 minutes for 40 moves + 30 minutes for the rest of the game + 30 seconds per move from move one."]
[WhiteTitle "GM"]
[BlackTitle "IM"]
[WhiteElo "2410"]
[BlackElo "2480"]

1. e4 {[%clk 01:30:49]} {[%emt 00:00:09]} e5 {[%clk 01:30:52]} {[%emt
00:00:10]} 2. Nf3 {[%clk 01:31:04]} {[%emt 00:00:13]} Nc6 {[%clk 01:31:14]}
{[%emt 00:00:10]} 3. d4 {[%clk 01:31:23]} {[%emt 00:00:10]} exd4 {[%clk
01:31:37]} {[%emt 00:00:08]} 4. Nxd4 {[%clk 01:31:46]} {[%emt 00:00:06]} Nf6
{[%clk 01:31:57]} {[%emt 00:00:10]} 5. Nxc6 {[%clk 01:32:04]} {[%emt 00:00:12]}
bxc6 {[%clk 01:32:21]} {[%emt 00:00:07]} 6. e5 {[%clk 01:32:22]} {[%emt
00:00:11]} Qe7 {[%clk 01:32:44]} {[%emt 00:00:08]} 7. Qe2 {[%clk 01:32:38]}
{[%emt 00:00:12]} Nd5 {[%clk 01:33:07]} {[%emt 00:00:08]} 8. Nd2 {[%clk
01:32:52]} {[%emt 00:00:15]} f6 {[%clk 01:15:51]} {[%emt 00:17:48]} 9. Nf3
{[%clk 01:24:11]} {[%emt 00:09:10]} fxe5 {[%clk 01:13:09]} {[%emt 00:03:11]} 10.
Bg5 {[%clk 01:23:47]} {[%emt 00:00:54]} Qe6 {[%clk 01:03:29]} {[%emt 00:10:11]}
11. Qxe5 {[%clk 01:13:38]} {[%emt 00:10:38]} Bb4+ {[%clk 01:00:21]} {[%emt
00:03:40]} 12. Bd2 {[%clk 01:08:15]} {[%emt 00:05:51]} Qxe5+ {[%clk 00:47:43]}
{[%emt 00:13:09]} 13. Nxe5 {[%clk 01:08:11]} {[%emt 00:00:33]} O-O {[%clk
00:47:32]} {[%emt 00:00:41]} 14. Nd3 {[%clk 01:07:30]} {[%emt 00:01:11]} Re8+
{[%clk 00:42:49]} {[%emt 00:05:13]} 15. Kd1 {[%clk 01:07:22]} {[%emt 00:00:37]}
Bf8 {[%clk 00:41:01]} {[%emt 00:02:19]} 16. c4 {[%clk 01:00:33]} {[%emt
00:07:20]} Nf6 {[%clk 00:39:16]} {[%emt 00:02:14]} 17. Ba5 {[%clk 00:59:27]}
{[%emt 00:01:36]} Ba6 {[%clk 00:24:22]} {[%emt 00:15:25]} 18. Rc1 {[%clk
00:56:22]} {[%emt 00:03:34]} d5 {[%clk 00:23:14]} {[%emt 00:01:38]} 19. cxd5
{[%clk 00:51:08]} {[%emt 00:05:43]} Rad8 {[%clk 00:12:30]} {[%emt 00:11:16]} 20.
Bxc7 {[%clk 00:44:44]} {[%emt 00:06:54]} Rxd5 {[%clk 00:09:53]} {[%emt
00:03:06]} 21. Kc2 {[%clk 00:44:53]} {[%emt 00:00:21]} Rd7 {[%clk 00:02:09]}
{[%emt 00:08:16]} 22. Ba5 {[%clk 00:38:54]} {[%emt 00:06:29]} Rd5 {[%clk
00:01:34]} {[%emt 00:01:05]} 23. Bc3 {[%clk 00:35:51]} {[%emt 00:03:31]} Ne4
{[%clk 00:01:24]} {[%emt 00:00:42]} 24. Nf4 {[%clk 00:33:35]} {[%emt 00:02:44]}
Nxc3 {[%clk 00:01:02]} {[%emt 00:00:53]} 25. Bxa6 {[%clk 00:31:28]} {[%emt
00:02:37]} Nxa2 {[%clk 00:01:21]} {[%emt 00:00:12]} 26. Nxd5 {[%clk 00:30:23]}
{[%emt 00:01:34]} cxd5 {[%clk 00:01:41]} {[%emt 00:00:11]} 27. Ra1 {[%clk
00:29:18]} {[%emt 00:01:34]} Nb4+ {[%clk 00:02:05]} {[%emt 00:00:07]} 28. Kd2
{[%clk 00:26:20]} {[%emt 00:03:28]} Bc5 {[%clk 00:02:10]} {[%emt 00:00:25]} 29.
Rhf1 {[%clk 00:26:11]} {[%emt 00:00:37]} Rb8 {[%clk 00:01:02]} {[%emt
00:01:39]} 30. Be2 {[%clk 00:24:50]} {[%emt 00:01:50]} Nc6 {[%clk 00:00:55]}
{[%emt 00:00:38]} 31. Bf3 {[%clk 00:21:10]} {[%emt 00:04:10]} Kf8 {[%clk
00:01:14]} {[%emt 00:00:11]} 32. Ra2 {[%clk 00:19:40]} {[%emt 00:02:01]} Bb4+
{[%clk 00:00:40]} {[%emt 00:01:04]} 33. Kc1 {[%clk 00:17:20]} {[%emt 00:02:50]}
Be7 {[%clk 00:00:32]} {[%emt 00:00:38]} 34. Rd1 {[%clk 00:13:10]} {[%emt
00:04:39]} Bf6 {[%clk 00:00:48]} {[%emt 00:00:14]} 35. Bxd5 {[%clk 00:11:52]}
{[%emt 00:01:46]} Nb4 {[%clk 00:01:14]} {[%emt 00:00:06]} 36. Rxa7 {[%clk
00:08:17]} {[%emt 00:04:05]} Bxb2+ {[%clk 00:01:28]} {[%emt 00:00:16]} 37. Kxb2
{[%clk 00:08:33]} {[%emt 00:00:13]} Nc6+ {[%clk 00:01:50]} {[%emt 00:00:09]} 38.
Bb3 {[%clk 00:08:38]} {[%emt 00:00:25]} Nxa7 {[%clk 00:02:11]} {[%emt
00:00:10]} 39. Rd7 {[%clk 00:08:53]} {[%emt 00:00:12]} Nc6 {[%clk 00:01:16]}
{[%emt 00:01:28]} 40. Rf7+ {[%clk 00:09:11]} {[%emt 00:00:10]} Ke8 {[%clk
00:01:13]} {[%emt 00:00:33]} 41. Rxg7 {[%clk 00:09:30]} {[%emt 00:00:12]} h5
{[%clk 00:29:13]} {[%emt 00:02:30]} 42. Kc3 {[%clk 00:36:57]} {[%emt 00:03:02]}
Rb5 {[%clk 00:27:32]} {[%emt 00:02:13]} 43. Rh7 {[%clk 00:33:44]} {[%emt
00:03:40]} Kf8 {[%clk 00:22:42]} {[%emt 00:05:21]} 44. Rf7+ {[%clk 00:27:07]}
{[%emt 00:07:05]} Ke8 {[%clk 00:22:41]} {[%emt 00:00:34]} 45. Rc7 {[%clk
00:27:21]} {[%emt 00:00:13]} Ne7 {[%clk 00:20:34]} {[%emt 00:02:37]} 46. Ra7
{[%clk 00:21:53]} {[%emt 00:05:58]} Kf8 {[%clk 00:18:30]} {[%emt 00:02:34]} 47.
Bd1 {[%clk 00:20:53]} {[%emt 00:01:30]} Rf5 {[%clk 00:17:20]} {[%emt 00:01:41]}
48. Bf3 {[%clk 00:20:53]} {[%emt 00:00:28]} h4 {[%clk 00:16:26]} {[%emt
00:01:26]} 49. h3 {[%clk 00:21:01]} {[%emt 00:00:21]} Ng6 {[%clk 00:16:23]}
{[%emt 00:00:32]} 50. Kd4 {[%clk 00:20:05]} {[%emt 00:01:27]} Rb5 {[%clk
00:12:59]} {[%emt 00:03:55]} 51. Bd5 {[%clk 00:17:54]} {[%emt 00:02:40]} Ne7
{[%clk 00:11:37]} {[%emt 00:01:53]} 52. Be4 {[%clk 00:18:13]} {[%emt 00:00:11]}
Kf7 {[%clk 00:10:02]} {[%emt 00:02:05]} 53. Ra6 {[%clk 00:15:16]} {[%emt
00:03:26]} Rb4+ {[%clk 00:06:37]} {[%emt 00:03:56]} 54. Ke3 {[%clk 00:15:34]}
{[%emt 00:00:12]} Rb3+ {[%clk 00:06:52]} {[%emt 00:00:15]} 55. Bd3 {[%clk
00:12:28]} {[%emt 00:03:34]} Nd5+ {[%clk 00:06:07]} {[%emt 00:01:16]} 56. Ke4
{[%clk 00:11:59]} {[%emt 00:00:59]} Rxd3 {[%clk 00:02:49]} {[%emt 00:03:49]} 57.
Ra7+ {[%clk 00:12:19]} {[%emt 00:00:10]} 1-0

[Event "Schack-SM 2024: Sverigemastarklassen"]
[Site "Fortnox Arena, Hejaregatan 5, Vaxjo, Sweden"]
[Date "2024.07.01"]
[Round "3.1"]
[White "Lokander, Martin"]
[Black "Seo, Jung Min"]
[Result "1/2-1/2"]
[TimeControl "90 minutes for 40 moves + 30 minutes for the rest of the game + 30 seconds per move from move one."]
[WhiteTitle "IM"]
[BlackTitle "IM"]
[WhiteElo "2474"]
[BlackElo "2442"]

1. d4 {[%clk 01:30:18]} {[%emt 00:00:41]} Nf6 {[%clk 01:30:54]} {[%emt
00:00:06]} 2. c4 {[%clk 01:30:39]} {[%emt 00:00:09]} e6 {[%clk 01:31:22]}
{[%emt 00:00:02]} 3. Nc3 {[%clk 01:30:58]} {[%emt 00:00:11]} Bb4 {[%clk
01:31:27]} {[%emt 00:00:25]} 4. e3 {[%clk 01:30:37]} {[%emt 00:00:52]} O-O
{[%clk 01:31:48]} {[%emt 00:00:09]} 5. a3 {[%clk 01:30:52]} {[%emt 00:00:15]}
Bxc3+ {[%clk 01:32:12]} {[%emt 00:00:06]} 6. bxc3 {[%clk 01:31:17]} {[%emt
00:00:06]} c5 {[%clk 01:27:41]} {[%emt 00:04:59]} 7. Bd3 {[%clk 01:30:45]}
{[%emt 00:01:02]} Nc6 {[%clk 01:27:03]} {[%emt 00:01:08]} 8. Rb1 {[%clk
01:31:08]} {[%emt 00:00:08]} d6 {[%clk 01:17:59]} {[%emt 00:09:33]} 9. Ne2
{[%clk 01:28:51]} {[%emt 00:02:48]} e5 {[%clk 01:18:20]} {[%emt 00:00:08]} 10.
O-O {[%clk 01:24:55]} {[%emt 00:04:27]} b6 {[%clk 01:14:43]} {[%emt 00:04:07]}
11. e4 {[%clk 01:24:06]} {[%emt 00:01:19]} cxd4 {[%clk 01:13:57]} {[%emt
00:01:15]} 12. cxd4 {[%clk 01:24:32]} {[%emt 00:00:04]} exd4 {[%clk 01:13:33]}
{[%emt 00:00:53]} 13. Bb2 {[%clk 01:24:33]} {[%emt 00:00:31]} Re8 {[%clk
01:00:23]} {[%emt 00:13:41]} 14. f3 {[%clk 01:24:10]} {[%emt 00:00:51]} Nd7
{[%clk 00:45:20]} {[%emt 00:15:32]} 15. Nxd4 {[%clk 01:23:06]} {[%emt
00:01:36]} Nxd4 {[%clk 00:45:47]} {[%emt 00:00:01]} 16. Bxd4 {[%clk 01:23:30]}
{[%emt 00:00:05]} Nc5 {[%clk 00:45:13]} {[%emt 00:01:03]} 17. Rf2 {[%clk
01:16:00]} {[%emt 00:08:01]} Nxd3 {[%clk 00:45:20]} {[%emt 00:00:23]} 18. Qxd3
{[%clk 01:16:28]} {[%emt 00:00:03]} Be6 {[%clk 00:43:52]} {[%emt 00:01:58]} 19.
a4 {[%clk 01:00:33]} {[%emt 00:16:25]} Rc8 {[%clk 00:44:03]} {[%emt 00:00:20]}
20. Rc2 {[%clk 00:58:22]} {[%emt 00:02:39]} Rc6 {[%clk 00:40:51]} {[%emt
00:03:44]} 21. Rb5 {[%clk 00:45:27]} {[%emt 00:13:25]} f6 {[%clk 00:40:58]}
{[%emt 00:00:22]} 22. a5 {[%clk 00:37:34]} {[%emt 00:08:25]} bxa5 {[%clk
00:40:34]} {[%emt 00:00:52]} 23. Rb7 {[%clk 00:37:44]} {[%emt 00:00:21]} Re7
{[%clk 00:33:26]} {[%emt 00:07:38]} 24. Qb3 {[%clk 00:32:18]} {[%emt 00:05:55]}
Rxb7 {[%clk 00:32:56]} {[%emt 00:01:01]} 25. Qxb7 {[%clk 00:32:45]} {[%emt
00:00:03]} Rxc4 {[%clk 00:32:08]} {[%emt 00:01:17]} 26. Rxc4 {[%clk 00:33:00]}
{[%emt 00:00:16]} Bxc4 {[%clk 00:32:35]} {[%emt 00:00:03]} 27. Qxa7 {[%clk
00:33:00]} {[%emt 00:00:29]} Be6 {[%clk 00:31:54]} {[%emt 00:01:10]} 28. Bb6
{[%clk 00:32:54]} {[%emt 00:00:38]} Qd7 {[%clk 00:32:19]} {[%emt 00:00:05]} 29.
Qxd7 {[%clk 00:33:02]} {[%emt 00:00:22]} Bxd7 {[%clk 00:32:47]} {[%emt
00:00:02]} 30. Bxa5 {[%emt 00:00:07]} Be6 {[%clk 00:33:11]} {[%emt 00:00:05]}
31. Bc7 {[%clk 00:33:50]} {[%emt 00:00:08]} d5 {[%clk 00:33:39]} 32. exd5
{[%clk 00:34:14]} {[%emt 00:00:07]} Bxd5 {[%clk 00:34:08]} {[%emt 00:00:02]} 33.
Kf2 {[%clk 00:34:37]} {[%emt 00:00:06]} Ba8 {[%clk 00:34:34]} {[%emt 00:00:04]}
34. Ba5 {[%clk 00:35:03]} {[%emt 00:00:05]} Bb7 {[%clk 00:35:01]} {[%emt
00:00:02]} 35. Bb4 {[%clk 00:35:30]} {[%emt 00:00:04]} Ba8 {[%clk 00:35:28]}
{[%emt 00:00:03]} 36. Ba3 {[%clk 00:35:56]} {[%emt 00:00:04]} Kf7 {[%clk
00:35:55]} {[%emt 00:00:03]} 37. Bb2 {[%clk 00:36:23]} {[%emt 00:00:04]} Bc6
{[%clk 00:36:22]} {[%emt 00:00:03]} 38. Bc3 {[%clk 00:36:49]} {[%emt 00:00:03]}
g5 {[%clk 00:36:49]} {[%emt 00:00:04]} 39. g4 {[%clk 00:37:16]} {[%emt
00:00:02]} Kg6 {[%clk 00:37:16]} {[%emt 00:00:03]} 40. Kg3 {[%clk 00:37:41]}
{[%emt 00:00:06]} f5 {[%clk 00:37:40]} {[%emt 00:00:06]} 41. f4 {[%clk
00:38:03]} {[%emt 00:00:08]} fxg4 {[%clk 00:38:07]} {[%emt 00:00:04]} 42. Kxg4
{[%clk 00:37:58]} {[%emt 00:00:34]} 1/2-1/2

[Event "Schack-SM 2024: Sverigemastarklassen"]
[Site "Fortnox Arena, Hejaregatan 5, Vaxjo, Sweden"]
[Date "2024.07.01"]
[Round "3.2"]
[White "Semcesen, Daniel"]
[Black "Blomqvist, Erik"]
[Result "0-1"]
[TimeControl "90 minutes for 40 moves + 30 minutes for the rest of the game + 30 seconds per move from move one."]
[WhiteTitle "GM"]
[BlackTitle "GM"]
[WhiteElo "2451"]
[BlackElo "2527"]

1. d4 {[%clk 01:30:51]} {[%emt 00:00:08]} Nf6 {[%clk 01:30:50]} {[%emt
00:00:09]} 2. Nf3 {[%clk 01:31:13]} {[%emt 00:00:10]} d5 {[%clk 01:31:11]}
{[%emt 00:00:07]} 3. Bg5 {[%clk 01:31:39]} {[%emt 00:00:05]} Ne4 {[%clk
01:30:51]} {[%emt 00:00:51]} 4. Bh4 {[%clk 01:31:57]} {[%emt 00:00:11]} c5
{[%clk 01:28:37]} {[%emt 00:02:44]} 5. e3 {[%clk 01:32:18]} {[%emt 00:00:09]}
cxd4 {[%clk 01:27:02]} {[%emt 00:02:06]} 6. exd4 {[%clk 01:31:52]} {[%emt
00:00:55]} Qb6 {[%clk 01:26:32]} {[%emt 00:00:59]} 7. Qc1 {[%clk 01:30:28]}
{[%emt 00:01:54]} g5 {[%clk 01:25:42]} {[%emt 00:01:20]} 8. Nxg5 {[%clk
01:16:23]} {[%emt 00:14:35]} Qh6 {[%clk 01:24:13]} {[%emt 00:01:57]} 9. Qf4
{[%clk 00:42:46]} {[%emt 00:34:09]} f6 {[%clk 01:24:11]} {[%emt 00:00:31]} 10.
Nh3 {[%clk 00:41:13]} {[%emt 00:02:05]} Bxh3 {[%clk 01:24:14]} {[%emt
00:00:27]} 11. Qxh6 {[%clk 00:41:32]} {[%emt 00:00:10]} Bxh6 {[%clk 01:24:37]}
{[%emt 00:00:06]} 12. gxh3 {[%clk 00:41:52]} {[%emt 00:00:10]} Bc1 {[%clk
01:24:57]} {[%emt 00:00:10]} 13. a4 {[%clk 00:41:42]} {[%emt 00:00:41]} Bxb2
{[%clk 01:18:51]} {[%emt 00:06:37]} 14. Ra2 {[%clk 00:41:48]} {[%emt 00:00:24]}
Bxd4 {[%clk 01:19:13]} {[%emt 00:00:07]} 15. c4 {[%clk 00:41:19]} {[%emt
00:00:59]} dxc4 {[%clk 01:12:16]} {[%emt 00:07:27]} 16. Bxc4 {[%clk 00:41:23]}
{[%emt 00:00:23]} Nc6 {[%clk 01:01:12]} {[%emt 00:11:36]} 17. Bg3 {[%clk
00:34:15]} {[%emt 00:07:37]} e5 {[%clk 00:47:24]} {[%emt 00:14:19]} 18. O-O
{[%clk 00:30:33]} {[%emt 00:04:12]} Ke7 {[%clk 00:46:54]} {[%emt 00:01:01]} 19.
Kh1 {[%clk 00:30:45]} {[%emt 00:00:18]} Rac8 {[%clk 00:38:52]} {[%emt
00:08:33]} 20. Re2 {[%clk 00:30:06]} {[%emt 00:01:08]} Nxg3+ {[%clk 00:37:54]}
{[%emt 00:01:29]} 21. hxg3 {[%clk 00:30:11]} {[%emt 00:00:24]} Nb4 {[%clk
00:37:29]} {[%emt 00:00:56]} 22. Bb3 {[%clk 00:29:57]} {[%emt 00:00:44]} Rc7
{[%clk 00:35:27]} {[%emt 00:02:30]} 23. Kg2 {[%clk 00:27:55]} {[%emt 00:02:34]}
Rhc8 {[%clk 00:34:35]} {[%emt 00:01:21]} 24. Rd1 {[%clk 00:26:31]} {[%emt
00:01:56]} Kf8 {[%clk 00:33:49]} {[%emt 00:01:14]} 25. Ree1 {[%clk 00:22:46]}
{[%emt 00:04:15]} Rc6 {[%clk 00:32:53]} {[%emt 00:01:26]} 26. h4 {[%clk
00:19:37]} {[%emt 00:03:39]} R8c7 {[%clk 00:32:06]} {[%emt 00:01:17]} 27. g4
{[%clk 00:18:20]} {[%emt 00:01:48]} Rg7 {[%clk 00:25:33]} {[%emt 00:07:02]} 28.
Kf3 {[%clk 00:17:56]} {[%emt 00:00:54]} h5 {[%clk 00:24:08]} {[%emt 00:01:56]}
29. gxh5 {[%clk 00:17:02]} {[%emt 00:01:23]} f5 {[%clk 00:24:30]} {[%emt
00:00:08]} 30. Rg1 {[%clk 00:16:46]} {[%emt 00:00:46]} Nd3 {[%clk 00:19:04]}
{[%emt 00:05:54]} 31. Rg5 {[%clk 00:14:14]} {[%emt 00:03:03]} e4+ {[%clk
00:18:10]} {[%emt 00:01:24]} 32. Kg2 {[%clk 00:13:48]} {[%emt 00:00:56]} Bf6
{[%clk 00:10:20]} {[%emt 00:08:20]} 33. Rxg7 {[%clk 00:12:27]} {[%emt
00:01:50]} Kxg7 {[%clk 00:10:23]} {[%emt 00:00:28]} 34. f3 {[%clk 00:10:03]}
{[%emt 00:02:54]} Rb6 {[%clk 00:09:42]} {[%emt 00:01:11]} 35. Bc4 {[%clk
00:06:36]} {[%emt 00:03:56]} Rb2+ {[%clk 00:09:52]} {[%emt 00:00:20]} 36. Nd2
{[%clk 00:05:07]} {[%emt 00:02:01]} Bc3 {[%clk 00:08:17]} {[%emt 00:02:05]} 0-1

[Event "Schack-SM 2024: Sverigemastarklassen"]
[Site "Fortnox Arena, Hejaregatan 5, Vaxjo, Sweden"]
[Date "2024.07.01"]
[Round "3.3"]
[White "Ostlund, Joar"]
[Black "Hillarp Persson, Tiger"]
[Result "0-1"]
[TimeControl "90 minutes for 40 moves + 30 minutes for the rest of the game + 30 seconds per move from move one."]
[WhiteTitle "FM"]
[BlackTitle "GM"]
[WhiteElo "2334"]
[BlackElo "2455"]

1. d4 {[%clk 01:30:54]} {[%emt 00:00:04]} Nf6 {[%clk 01:29:18]} {[%emt
00:01:42]} 2. c4 {[%clk 01:31:14]} {[%emt 00:00:09]} e6 {[%clk 01:28:28]}
{[%emt 00:01:20]} 3. Nf3 {[%clk 01:31:30]} {[%emt 00:00:13]} b6 {[%clk
01:28:37]} {[%emt 00:00:22]} 4. a3 {[%clk 01:30:41]} {[%emt 00:01:20]} Ba6
{[%clk 01:24:05]} {[%emt 00:05:01]} 5. Qc2 {[%clk 01:31:03]} {[%emt 00:00:08]}
c5 {[%clk 01:24:18]} {[%emt 00:00:18]} 6. e4 {[%clk 01:29:34]} {[%emt
00:01:57]} cxd4 {[%clk 01:23:58]} {[%emt 00:00:52]} 7. e5 {[%clk 01:25:39]}
{[%emt 00:04:25]} Ng8 {[%clk 01:23:51]} {[%emt 00:00:36]} 8. Bd3 {[%clk
01:14:53]} {[%emt 00:11:16]} Bb7 {[%clk 01:09:02]} {[%emt 00:15:18]} 9. Bxh7
{[%clk 00:59:09]} {[%emt 00:16:15]} Bxf3 {[%clk 01:06:15]} {[%emt 00:03:17]} 10.
gxf3 {[%clk 00:58:30]} {[%emt 00:01:08]} Nc6 {[%clk 01:03:12]} {[%emt
00:03:34]} 11. Bxg8 {[%clk 00:43:18]} {[%emt 00:15:42]} Qh4 {[%clk 00:34:28]}
{[%emt 00:29:14]} 12. Bxf7+ {[%clk 00:40:50]} {[%emt 00:02:58]} Kxf7 {[%clk
00:34:08]} {[%emt 00:00:50]} 13. f4 {[%clk 00:40:33]} {[%emt 00:00:47]} Rh5
{[%clk 00:33:40]} {[%emt 00:00:58]} 14. Qd3 {[%clk 00:34:47]} {[%emt 00:06:16]}
Rc8 {[%clk 00:27:25]} {[%emt 00:06:46]} 15. Qg3 {[%clk 00:31:07]} {[%emt
00:04:10]} Nxe5 {[%clk 00:25:23]} {[%emt 00:02:32]} 16. b3 {[%clk 00:23:11]}
{[%emt 00:08:25]} Qxg3 {[%clk 00:13:00]} {[%emt 00:12:54]} 17. fxg3 {[%clk
00:23:32]} {[%emt 00:00:09]} Nd3+ {[%clk 00:13:22]} {[%emt 00:00:08]} 18. Kd2
{[%clk 00:06:18]} {[%emt 00:17:46]} Nf2 {[%clk 00:13:43]} {[%emt 00:00:08]} 19.
Rf1 {[%clk 00:06:06]} {[%emt 00:00:41]} Rxh2 {[%clk 00:14:03]} {[%emt
00:00:10]} 20. Ke2 {[%clk 00:06:15]} {[%emt 00:00:21]} Ne4+ {[%clk 00:12:48]}
{[%emt 00:01:45]} 21. Kf3 {[%clk 00:06:34]} {[%emt 00:00:12]} d5 {[%clk
00:11:59]} {[%emt 00:01:17]} 22. a4 {[%clk 00:06:48]} {[%emt 00:00:18]} Nc5
{[%clk 00:11:10]} {[%emt 00:01:19]} 23. Nd2 {[%clk 00:05:21]} {[%emt 00:01:57]}
Rxd2 {[%clk 00:10:30]} {[%emt 00:01:09]} 24. Bxd2 {[%clk 00:05:41]} {[%emt
00:00:11]} Nxb3 {[%clk 00:10:53]} {[%emt 00:00:06]} 25. Rad1 {[%clk 00:05:47]}
{[%emt 00:00:24]} dxc4 {[%clk 00:11:12]} {[%emt 00:00:12]} 26. Ke4 {[%clk
00:05:11]} {[%emt 00:01:05]} Be7 {[%clk 00:09:05]} {[%emt 00:02:37]} 27. f5
{[%clk 00:02:24]} {[%emt 00:03:18]} Nxd2+ {[%clk 00:07:07]} {[%emt 00:02:28]}
28. Rxd2 {[%clk 00:02:52]} {[%emt 00:00:03]} d3 {[%clk 00:07:25]} {[%emt
00:00:12]} 29. g4 {[%clk 00:00:46]} {[%emt 00:02:36]} Bg5 {[%clk 00:05:02]}
{[%emt 00:02:53]} 30. Rdd1 {[%clk 00:00:42]} {[%emt 00:00:34]} e5 {[%clk
00:04:01]} {[%emt 00:01:32]} 31. Rb1 {[%clk 00:00:32]} {[%emt 00:00:40]} Rd8
{[%clk 00:03:42]} {[%emt 00:00:47]} 32. Rfd1 {[%clk 00:00:31]} {[%emt
00:00:32]} Rd4+ {[%clk 00:03:58]} {[%emt 00:00:13]} 0-1

[Event "Schack-SM 2024: Sverigemastarklassen"]
[Site "Fortnox Arena, Hejaregatan 5, Vaxjo, Sweden"]
[Date "2024.07.01"]
[Round "3.4"]
[White "Sivuk, Vitaly"]
[Black "Pantzar, Milton"]
[Result "1-0"]
[TimeControl "90 minutes for 40 moves + 30 minutes for the rest of the game + 30 seconds per move from move one."]
[WhiteTitle "GM"]
[BlackTitle "IM"]
[WhiteElo "2569"]
[BlackElo "2480"]

1. d4 {[%clk 01:30:55]} {[%emt 00:00:04]} d5 {[%clk 01:30:44]} {[%emt
00:00:17]} 2. c4 {[%clk 01:31:11]} {[%emt 00:00:13]} e6 {[%clk 01:30:42]}
{[%emt 00:00:33]} 3. Nc3 {[%clk 01:31:31]} {[%emt 00:00:10]} Nf6 {[%clk
01:30:46]} {[%emt 00:00:25]} 4. cxd5 {[%clk 01:31:50]} {[%emt 00:00:12]} exd5
{[%clk 01:31:07]} {[%emt 00:00:08]} 5. Bg5 {[%clk 01:32:12]} {[%emt 00:00:06]}
c6 {[%clk 01:31:28]} {[%emt 00:00:10]} 6. e3 {[%clk 01:32:33]} {[%emt
00:00:09]} h6 {[%clk 01:29:49]} {[%emt 00:02:10]} 7. Bh4 {[%clk 01:32:29]}
{[%emt 00:00:34]} Be7 {[%clk 01:29:59]} {[%emt 00:00:19]} 8. Bd3 {[%clk
01:32:45]} {[%emt 00:00:14]} O-O {[%clk 01:29:54]} {[%emt 00:00:35]} 9. Nge2
{[%clk 01:32:59]} {[%emt 00:00:16]} Nbd7 {[%clk 01:24:45]} {[%emt 00:05:41]} 10.
O-O {[%clk 01:32:50]} {[%emt 00:00:37]} Re8 {[%clk 01:24:55]} {[%emt 00:00:21]}
11. f3 {[%clk 01:30:18]} {[%emt 00:03:02]} b5 {[%clk 01:23:27]} {[%emt
00:02:00]} 12. Rc1 {[%clk 01:29:17]} {[%emt 00:01:30]} a5 {[%clk 01:18:08]}
{[%emt 00:05:49]} 13. Bf2 {[%clk 01:27:19]} {[%emt 00:02:27]} Ba6 {[%clk
01:08:09]} {[%emt 00:10:31]} 14. Ng3 {[%clk 01:24:26]} {[%emt 00:03:21]} b4
{[%clk 00:53:49]} {[%emt 00:14:52]} 15. Bxa6 {[%clk 01:21:43]} {[%emt
00:03:11]} bxc3 {[%clk 00:38:27]} {[%emt 00:15:53]} 16. Bb7 {[%clk 01:19:19]}
{[%emt 00:03:23]} Rb8 {[%clk 00:38:55]} {[%emt 00:00:32]} 17. Bxc6 {[%clk
01:19:38]} {[%emt 00:00:11]} cxb2 {[%clk 00:39:18]} {[%emt 00:00:08]} 18. Rb1
{[%clk 01:20:03]} {[%emt 00:00:04]} Qc7 {[%clk 00:37:43]} {[%emt 00:02:06]} 19.
Ba4 {[%clk 01:17:46]} {[%emt 00:02:47]} Qc3 {[%clk 00:32:14]} {[%emt 00:05:59]}
20. e4 {[%clk 01:13:26]} {[%emt 00:04:49]} dxe4 {[%clk 00:27:05]} {[%emt
00:05:40]} 21. fxe4 {[%clk 01:13:28]} {[%emt 00:00:27]} Red8 {[%clk 00:27:07]}
{[%emt 00:00:28]} 22. Qe2 {[%clk 01:09:09]} {[%emt 00:04:49]} Nb6 {[%clk
00:23:25]} {[%emt 00:04:11]} 23. Bb5 {[%clk 01:08:21]} {[%emt 00:01:19]} Rxd4
{[%clk 00:15:53]} {[%emt 00:08:04]} 24. Bxd4 {[%clk 01:05:10]} {[%emt
00:03:41]} Qxd4+ {[%clk 00:16:18]} {[%emt 00:00:04]} 25. Kh1 {[%clk 01:05:34]}
{[%emt 00:00:05]} Ba3 {[%clk 00:06:44]} {[%emt 00:10:04]} 26. e5 {[%clk
01:01:50]} {[%emt 00:04:14]} Nfd5 {[%clk 00:04:18]} {[%emt 00:02:57]} 27. Nf5
{[%clk 01:00:05]} {[%emt 00:02:14]} Qb4 {[%clk 00:04:14]} {[%emt 00:00:36]} 28.
e6 {[%clk 00:59:03]} {[%emt 00:01:30]} f6 {[%clk 00:01:30]} {[%emt 00:03:14]}
29. Qh5 {[%clk 00:58:35]} {[%emt 00:00:57]} 1-0